fUST/lending_fUST_20240226
["ID","MTS","AMOUNT","RATE_DAILY","PERIOD"]
[315208441,1708935041535,-4218.31,0.00019178,2]
[315208442,1708935041544,-500.0,0.00019178,2]
[315208443,1708935041554,-500.0,0.00019178,2]
[315208444,1708935041563,-500.0,0.00019178,2]
[315208445,1708935041573,-500.0,0.00019178,2]
[315208446,1708935041582,-500.0,0.00019178,2]
[315208447,1708935041592,-500.0,0.00019178,2]
[315208448,1708935041601,-500.0,0.00019178,2]
[315208449,1708935041611,-500.0,0.00019178,2]
[315208450,1708935041621,-500.0,0.00019178,2]
[315208451,1708935041631,-500.0,0.00019178,2]
[315208452,1708935041640,-500.0,0.00019178,2]
[315208453,1708935041650,-2941.06,0.00019178,2]
[315208454,1708935041660,-500.0,0.00019178,2]
[315208455,1708935041669,-500.0,0.00019178,2]
[315208456,1708935041679,-2762.77,0.00019178,2]
[315208458,1708935041688,-1467.94,0.00019178,2]
[315208459,1708935041697,-833.88,0.00019178,2]
[315208460,1708935041707,-500.0,0.00019178,2]
[315208461,1708935041716,-640.38620748,0.00019178,2]
[315208462,1708935041725,-566.16513416,0.00019178,2]
[315208463,1708935041735,-820.96,0.00019178,2]
[315208465,1708935041744,-500.0,0.00019178,2]
[315208466,1708935041754,-500.0,0.00019178,2]
[315208467,1708935041763,-212.2436076,0.00019178,2]
[315208468,1708935041773,-501.16145419,0.00019178,2]
[315208469,1708935041782,-500.0,0.00019178,2]
[315208470,1708935041792,-1000.0,0.00019178,2]
[315208471,1708935041801,-500.0,0.00019178,2]
[315208472,1708935041810,-500.0,0.00019178,2]
[315208473,1708935041820,-2123.47,0.00019178,2]
[315208474,1708935041829,-1870.84,0.00019178,2]
[315208475,1708935041838,-500.0,0.00019178,2]
[315208476,1708935041847,-500.0,0.00019178,2]
[315208477,1708935041857,-500.0,0.00019178,2]
[315208478,1708935041866,-500.0,0.00019178,2]
[315208479,1708935041876,-2590.4,0.00019178,2]
[315208480,1708935041885,-500.0,0.00019178,2]
[315208481,1708935041895,-500.0,0.00019178,2]
[315208482,1708935041907,-500.0,0.00019178,2]
[315208483,1708935041919,-249.09722205,0.00019178,2]
[315208484,1708935041928,-500.0,0.00019178,2]
[315208485,1708935041939,-500.0,0.00019178,2]
[315208486,1708935041949,-500.0,0.00019178,2]
[315208487,1708935041958,-501.12566577,0.00019178,2]
[315208488,1708935041967,-500.0,0.00019178,2]
[315208489,1708935041977,-500.0,0.00019178,2]
[315208490,1708935041986,-2088.94,0.00019178,2]
[315208492,1708935041997,-501.16229543,0.00019178,2]
[315208493,1708935042007,-500.0,0.00019178,2]
[315208494,1708935042016,-573.72782983,0.00019178,2]
[315208495,1708935042025,-23193.98,0.00019178,2]
[315208496,1708935042034,-500.0,0.00019178,2]
[315208497,1708935042044,-11204.38,0.00019178,2]
[315208498,1708935042053,-500.0,0.00019178,2]
[315208499,1708935042062,-500.0,0.00019178,2]
[315208500,1708935042071,-1005.8616059,0.00019178,2]
[315208501,1708935042080,-500.0,0.00019178,2]
[315208502,1708935042090,-500.0,0.00019178,2]
[315208503,1708935042100,-500.0,0.00019178,2]
[315208504,1708935042109,-500.0,0.00019178,2]
[315208505,1708935042120,-4344.96,0.00019178,2]
[315208506,1708935042129,-500.0,0.00019178,2]
[315208507,1708935042138,-500.0,0.00019178,2]
[315208508,1708935042147,-500.0,0.00019178,2]
[315208509,1708935042157,-268.97832651,0.00019178,2]
[315208510,1708935042166,-500.0,0.00019178,2]
[315208511,1708935042176,-500.0,0.00019178,2]
[315208512,1708935042185,-500.0,0.00019178,2]
[315208513,1708935042194,-500.0,0.00019178,2]
[315208514,1708935042203,-500.0,0.00019178,2]
[315208515,1708935042217,-500.20438763,0.00019178,2]
[315208516,1708935042233,-500.0,0.00019178,2]
[315208517,1708935042247,-500.0,0.00019178,2]
[315208518,1708935042261,-500.0,0.00019178,2]
[315208519,1708935042275,-500.0,0.00019178,2]
[315208520,1708935042286,-500.0,0.00019178,2]
[315208521,1708935042297,-500.0,0.00019178,2]
[315208522,1708935042310,-2282.25,0.00019178,2]
[315208523,1708935042323,-2291.28,0.00019178,2]
[315208524,1708935042335,-500.0,0.00019178,2]
[315208525,1708935042348,-500.87195388,0.00019178,2]
[315208526,1708935042361,-518.49613271,0.00019178,2]
[315208527,1708935042373,-500.0,0.00019178,2]
[315208528,1708935042386,-641.27,0.00019178,2]
[315208529,1708935042397,-641.27,0.00019178,2]
[315208530,1708935042408,-641.27,0.00019178,2]
[315208531,1708935042419,-641.27,0.00019178,2]
[315208532,1708935042432,-500.0,0.00019178,2]
[315208533,1708935042443,-500.0,0.00019178,2]
[315208534,1708935042456,-500.0,0.00019178,2]
[315208535,1708935042468,-511.41656817,0.00019178,2]
[315208536,1708935042479,-500.0,0.00019178,2]
[315208537,1708935042491,-500.0,0.00019178,2]
[315208538,1708935042504,-501.56333098,0.00019178,2]
[315208539,1708935042516,-866.2,0.00019178,2]
[315208540,1708935042526,-500.0,0.00019178,2]
[315208541,1708935042536,-1799.84,0.00019178,2]
[315208542,1708935042550,-678.73,0.00019178,2]
[315208543,1708935042562,-500.0,0.00019178,2]
[315208544,1708935042573,-2514.37,0.00019178,2]
[315208545,1708935042586,-500.0,0.00019178,2]
[315208546,1708935042599,-500.0,0.00019178,2]
[315208547,1708935042610,-566.42558314,0.00019178,2]
[315208548,1708935042621,-500.0,0.00019178,2]
[315208549,1708935042634,-500.0,0.00019178,2]
[315208550,1708935042646,-500.0,0.00019178,2]
[315208551,1708935042658,-500.0,0.00019178,2]
[315208552,1708935042670,-8196.53,0.00019178,2]
[315208553,1708935042683,-3587.74,0.00019178,2]
[315208554,1708935042697,-625.93045909,0.00019178,2]
[315208555,1708935042711,-500.0,0.00019178,2]
[315208556,1708935042724,-500.0,0.00019178,2]
[315208557,1708935042736,-500.0,0.00019178,2]
[315208558,1708935042747,-868.21,0.00019178,2]
[315208559,1708935042757,-22658.04,0.00019178,2]
[315208560,1708935042767,-1527.13,0.00019178,2]
[315208561,1708935042778,-500.0,0.00019178,2]
[315208562,1708935042790,-663.91,0.00019178,2]
[315208563,1708935042802,-400.24472666,0.00019178,2]
[315208564,1708935042813,-165.747356,0.00019178,2]
[315208565,1708935042824,-166.666666,0.00019178,2]
[315208566,1708935042835,-164.959788,0.00019178,2]
[315208567,1708935042848,-641.27,0.00019451,2]
[315208568,1708935042858,-641.27,0.00019451,2]
[315208569,1708935042870,-641.27,0.00019451,2]
[315208570,1708935042881,-500.0,0.00019452,2]
[315208571,1708935042892,-500.0,0.00019452,2]
[315208572,1708935042905,-449.10144349,0.00019452,2]
[315208573,1708935042919,-500.0,0.00019452,2]
[315208574,1708935042934,-500.0,0.00019452,2]
[315208575,1708935042946,-500.0,0.00019452,2]
[315208576,1708935042957,-500.0,0.00019452,2]
[315208577,1708935042969,-500.0,0.00019452,2]
[315208578,1708935042981,-1236.28,0.00019452,2]
[315208579,1708935042992,-500.0,0.00019452,2]
[315208580,1708935043005,-500.0,0.00019452,2]
[315208581,1708935043018,-539.47583065,0.00019452,2]
[315208583,1708935043031,-500.0,0.00019452,2]
[315208584,1708935043041,-500.0,0.00019452,2]
[315208585,1708935043052,-500.0,0.00019452,2]
[315208586,1708935043063,-201.81516256,0.00019452,2]
[315208588,1708935043073,-500.0,0.00019452,2]
[315208590,1708935043083,-500.0,0.00019452,2]
[315208591,1708935043094,-405.80118565,0.00019452,2]
[315208592,1708935043105,-500.0,0.00019452,2]
[315208593,1708935043117,-500.0,0.00019452,2]
[315208594,1708935043129,-506.01947048,0.00019452,2]
[315208595,1708935043140,-501.82744386,0.00019452,2]
[315208596,1708935043151,-503.89798039,0.00019452,2]
[315208597,1708935043162,-185.27418586,0.00019452,2]
[315208598,1708935043173,-1671.11,0.00019452,2]
[315208599,1708935043185,-738.31,0.00019452,2]
[315208600,1708935043196,-500.0,0.00019452,2]
[315208601,1708935043207,-502.15505867,0.00019452,2]
[315208602,1708935043218,-500.0,0.00019452,2]
[315208603,1708935043228,-630.35,0.00019452,2]
[315208604,1708935043239,-500.0,0.00019452,2]
[315208605,1708935043250,-500.0,0.00019452,2]
[315208606,1708935043260,-390.70436853,0.00019452,2]
[315208607,1708935043270,-500.0,0.00019452,2]
[315208608,1708935043281,-500.0,0.00019452,2]
[315208609,1708935043292,-1669.61,0.00019452,2]
[315208610,1708935043303,-500.0,0.00019452,2]
[315208611,1708935043314,-500.0,0.00019452,2]
[315208613,1708935043324,-503.13338535,0.00019452,2]
[315208615,1708935043335,-502.20415089,0.00019452,2]
[315208617,1708935043345,-583.9,0.00019452,2]
[315208619,1708935043356,-500.0,0.00019452,2]
[315208620,1708935043367,-502.89262175,0.00019452,2]
[315208621,1708935043379,-607.75992688,0.00019452,2]
[315208622,1708935043390,-500.0,0.00019452,2]
[315208623,1708935043401,-500.0,0.00019452,2]
[315208624,1708935043411,-504.12794573,0.00019452,2]
[315208625,1708935043422,-500.0,0.00019452,2]
[315208627,1708935043433,-500.0,0.00019452,2]
[315208629,1708935043444,-500.0,0.00019452,2]
[315208631,1708935043454,-500.0,0.00019452,2]
[315208633,1708935043466,-500.0,0.00019452,2]
[315208635,1708935043477,-500.63508727,0.00019452,2]
[315208637,1708935043488,-500.0,0.00019452,2]
[315208639,1708935043500,-500.0,0.00019452,2]
[315208641,1708935043511,-500.79176669,0.00019452,2]
[315208643,1708935043522,-500.0,0.00019452,2]
[315208646,1708935043533,-500.0,0.00019452,2]
[315208648,1708935043543,-500.94944783,0.00019452,2]
[315208652,1708935043682,-500.0,0.00019452,2]
[315208653,1708935043693,-500.0,0.00019452,2]
[315208654,1708935043702,-2184.79,0.00019452,2]
[315208655,1708935043711,-500.0,0.00019452,2]
[315208656,1708935043720,-500.0,0.00019452,2]
[315208657,1708935043729,-500.0,0.00019452,2]
[315208658,1708935043738,-500.0,0.00019452,2]
[315208659,1708935043747,-500.0,0.00019452,2]
[315208660,1708935043756,-631.67993521,0.00019452,2]
[315208661,1708935043765,-500.0,0.00019452,2]
[315208662,1708935043774,-500.0,0.00019452,2]
[315208663,1708935043783,-500.0,0.00019452,2]
[315208664,1708935043792,-500.0,0.00019452,2]
[315208665,1708935043801,-1773.94,0.00019452,2]
[315208666,1708935043810,-500.0,0.00019452,2]
[315208667,1708935043819,-500.0,0.00019452,2]
[315208668,1708935043827,-474.48126572,0.00019452,2]
[315208669,1708935043836,-500.0,0.00019452,2]
[315208670,1708935043845,-500.0,0.00019452,2]
[315208671,1708935043854,-500.0,0.00019452,2]
[315208673,1708935043863,-500.0,0.00019452,2]
[315208675,1708935043873,-500.0,0.00019452,2]
[315208677,1708935043882,-500.0,0.00019452,2]
[315208679,1708935043891,-500.0,0.00019452,2]
[315208681,1708935043901,-500.0,0.00019452,2]
[315208682,1708935043913,-500.0,0.00019452,2]
[315208684,1708935043922,-500.0,0.00019452,2]
[315208686,1708935043931,-500.0,0.00019452,2]
[315208688,1708935043940,-500.0,0.00019452,2]
[315208689,1708935043950,-500.0,0.00019452,2]
[315208691,1708935043960,-500.0,0.00019452,2]
[315208693,1708935043969,-500.0,0.00019452,2]
[315208695,1708935043978,-500.0,0.00019452,2]
[315208697,1708935043987,-553.1,0.00019452,2]
[315208699,1708935043998,-1055.24,0.00019452,2]
[315208701,1708935044007,-500.0,0.00019452,2]
[315208702,1708935044015,-500.0,0.00019452,2]
[315208704,1708935044024,-1283.38,0.00019452,2]
[315208706,1708935044033,-500.0,0.00019452,2]
[315208707,1708935044042,-500.0,0.00019452,2]
[315208708,1708935044051,-500.0,0.00019452,2]
[315208709,1708935044060,-500.0,0.00019452,2]
[315208710,1708935044069,-500.0,0.00019452,2]
[315208711,1708935044078,-500.0,0.00019452,2]
[315208712,1708935044088,-779.44,0.00019452,2]
[315208713,1708935044097,-1488.87,0.00019452,2]
[315208714,1708935044106,-4218.31,0.00019452,2]
[315208715,1708935044115,-500.85128667,0.00019452,2]
[315208716,1708935044124,-500.0,0.00019452,2]
[315208717,1708935044133,-500.0,0.00019452,2]
[315208718,1708935044142,-500.0,0.00019452,2]
[315208719,1708935044151,-499.53437694,0.00019452,2]
[315208720,1708935044160,-500.0,0.00019452,2]
[315208721,1708935044170,-500.0,0.00019452,2]
[315208722,1708935044178,-500.0,0.00019452,2]
[315208723,1708935044187,-500.0,0.00019452,2]
[315208724,1708935044196,-2941.06,0.00019452,2]
[315208725,1708935044206,-500.0,0.00019452,2]
[315208726,1708935044215,-500.0,0.00019452,2]
[315208727,1708935044224,-2762.77,0.00019452,2]
[315208728,1708935044233,-1467.94,0.00019452,2]
[315208729,1708935044242,-833.88,0.00019452,2]
[315208730,1708935044251,-820.96,0.00019452,2]
[315208731,1708935044260,-500.0,0.00019452,2]
[315208732,1708935044269,-500.0,0.00019452,2]
[315208733,1708935044278,-500.0,0.00019452,2]
[315208734,1708935044287,-1000.0,0.00019452,2]
[315208735,1708935044296,-500.0,0.00019452,2]
[315208736,1708935044305,-500.0,0.00019452,2]
[315208737,1708935044314,-2123.47,0.00019452,2]
[315208738,1708935044323,-1870.84,0.00019452,2]
[315208739,1708935044332,-500.0,0.00019452,2]
[315208740,1708935044341,-500.0,0.00019452,2]
[315208741,1708935044350,-500.0,0.00019452,2]
[315208742,1708935044359,-500.0,0.00019452,2]
[315208743,1708935044367,-2590.4,0.00019452,2]
[315208744,1708935044377,-500.0,0.00019452,2]
[315208745,1708935044386,-249.10033961,0.00019452,2]
[315208746,1708935044395,-500.0,0.00019452,2]
[315208747,1708935044404,-500.0,0.00019452,2]
[315208748,1708935044414,-442.24473459,0.00019452,2]
[315208749,1708935044423,-612.23784616,0.00019452,2]
[315208750,1708935044432,-500.0,0.00019452,2]
[315208751,1708935044441,-2088.94,0.00019452,2]
[315208752,1708935044450,-503.32885852,0.00019452,2]
[315208753,1708935044460,-23193.98,0.00019452,2]
[315208754,1708935044469,-500.0,0.00019452,2]
[315208755,1708935044478,-11204.38,0.00019452,2]
[315208756,1708935044487,-500.0,0.00019452,2]
[315208757,1708935044496,-500.0,0.00019452,2]
[315208758,1708935044505,-500.0,0.00019452,2]
[315208759,1708935044515,-500.0,0.00019452,2]
[315208760,1708935044524,-500.0,0.00019452,2]
[315208761,1708935044533,-4344.96,0.00019452,2]
[315208762,1708935044543,-500.0,0.00019452,2]
[315208763,1708935044553,-500.0,0.00019452,2]
[315208764,1708935044562,-500.0,0.00019452,2]
[315208765,1708935044571,-500.0,0.00019452,2]
[315208766,1708935044580,-500.0,0.00019452,2]
[315208767,1708935044589,-500.0,0.00019452,2]
[315208768,1708935044598,-500.0,0.00019452,2]
[315208769,1708935044607,-500.0,0.00019452,2]
[315208770,1708935044615,-500.0,0.00019452,2]
[315208771,1708935044625,-500.0,0.00019452,2]
[315208772,1708935044634,-500.0,0.00019452,2]
[315208773,1708935044643,-501.32910414,0.00019452,2]
[315208774,1708935044652,-500.0,0.00019452,2]
[315208775,1708935044662,-2282.25,0.00019452,2]
[315208776,1708935044671,-2291.28,0.00019452,2]
[315208777,1708935044680,-500.0,0.00019452,2]
[315208778,1708935044689,-500.0,0.00019452,2]
[315208779,1708935044699,-500.0,0.00019452,2]
[315208780,1708935044708,-500.0,0.00019452,2]
[315208781,1708935044717,-500.0,0.00019452,2]
[315208782,1708935044727,-500.0,0.00019452,2]
[315208783,1708935044736,-509.9265336,0.00019452,2]
[315208784,1708935044745,-866.2,0.00019452,2]
[315208785,1708935044754,-500.0,0.00019452,2]
[315208786,1708935044763,-1799.84,0.00019452,2]
[315208787,1708935044773,-678.73,0.00019452,2]
[315208788,1708935044782,-500.0,0.00019452,2]
[315208789,1708935044790,-2514.37,0.00019452,2]
[315208790,1708935044800,-500.0,0.00019452,2]
[315208791,1708935044809,-500.0,0.00019452,2]
[315208792,1708935044818,-500.0,0.00019452,2]
[315208793,1708935044827,-500.0,0.00019452,2]
[315208794,1708935044836,-479.17651164,0.00019452,2]
[315208795,1708935044845,-500.0,0.00019452,2]
[315208796,1708935044854,-8196.53,0.00019452,2]
[315208797,1708935044863,-3587.74,0.00019452,2]
[315208798,1708935044873,-500.0,0.00019452,2]
[315208799,1708935044882,-500.0,0.00019452,2]
[315208800,1708935044894,-500.0,0.00019452,2]
[315208801,1708935044904,-868.21,0.00019452,2]
[315208802,1708935044913,-22658.04,0.00019452,2]
[315208803,1708935044926,-1527.13,0.00019452,2]
[315208804,1708935044935,-500.0,0.00019452,2]
[315208805,1708935044944,-663.91,0.00019452,2]
[315208806,1708935044953,-7330.41372259,0.00019473,2]
[315208807,1708935044963,-7330.41372259,0.00019475,2]
[315208808,1708935044973,-182.85476532,0.00019481,2]
[315208809,1708935044982,-182.85476532,0.00019481,2]
[315208810,1708935044991,-182.85476532,0.00019487,2]
[315208811,1708935045001,-7330.41372259,0.00019496,2]
[315208812,1708935045010,-641.27,0.00019523,2]
[315208813,1708935045019,-24314.32664584,0.00019524,2]
[315208814,1708935045029,-9602.07581363,0.00019568,2]
[315208815,1708935045038,-3384.81215471,0.00019626,2]
[315208816,1708935045047,-187.77356773,0.00019626,2]
[315208817,1708935045056,-166.666666,0.00019627,2]
[315208818,1708935045066,-5529.96122929,0.000197,2]
[315208819,1708935045075,-5529.96122929,0.000197,2]
[315208820,1708935045084,-5529.96122929,0.000197,2]
[315208821,1708935045093,-153.0,0.000197,2]
[315208822,1708935045102,-153.0,0.000197,2]
[315208823,1708935045111,-153.0,0.000197,2]
[315208824,1708935045121,-401.1652708,0.000197,2]
[315208825,1708935045130,-306.0,0.000197,2]
[315208826,1708935045139,-200.5826354,0.000197,2]
[315208827,1708935045149,-153.0,0.000197,2]
[315208828,1708935045158,-153.0,0.000197,2]
[315208829,1708935045167,-153.0,0.000197,2]
[315208830,1708935045178,-200.5826354,0.000197,2]
[315208831,1708935045186,-153.0,0.000197,2]
[315208832,1708935045195,-153.0,0.000197,2]
[315208833,1708935045205,-153.0,0.000197,2]
[315208834,1708935045214,-200.5826354,0.000197,2]
[315208835,1708935045225,-401.1652708,0.000197,2]
[315208836,1708935045235,-153.0,0.000197,2]
[315208837,1708935045245,-200.5826354,0.000197,2]
[315208838,1708935045254,-306.0,0.000197,2]
[315208839,1708935045263,-200.5826354,0.000197,2]
[315208840,1708935045272,-153.0,0.000197,2]
[315208841,1708935045281,-200.5826354,0.000197,2]
[315208842,1708935045290,-200.5826354,0.000197,2]
[315208843,1708935045300,-200.5826354,0.000197,2]
[315208844,1708935045309,-153.0,0.000197,2]
[315208845,1708935045318,-500.0,0.00019722,2]
[315208846,1708935045327,-200.86010344,0.00019722,2]
[315208847,1708935045336,-500.0,0.00019722,2]
[315208848,1708935045345,-500.0,0.00019722,2]
[315208849,1708935045354,-500.0,0.00019722,2]
[315208850,1708935045364,-500.0,0.00019722,2]
[315208851,1708935045373,-500.0,0.00019722,2]
[315208852,1708935045381,-500.0,0.00019722,2]
[315208853,1708935045391,-500.0,0.00019722,2]
[315208854,1708935045400,-500.0,0.00019722,2]
[315208855,1708935045409,-641.27,0.00019723,2]
[315208856,1708935045418,-697.2497258,0.00019725,2]
[315208857,1708935045427,-641.27,0.00019725,2]
[315208858,1708935045436,-641.27,0.00019725,2]
[315208859,1708935045445,-641.27,0.00019725,2]
[315208860,1708935045454,-500.0,0.00019726,2]
[315208861,1708935045463,-500.0,0.00019726,2]
[315208862,1708935045472,-500.0,0.00019726,2]
[315208863,1708935045481,-500.0,0.00019726,2]
[315208864,1708935045491,-500.0,0.00019726,2]
[315208865,1708935045500,-500.0,0.00019726,2]
[315208866,1708935045509,-500.0,0.00019726,2]
[315208867,1708935045519,-1236.28,0.00019726,2]
[315208868,1708935045528,-500.0,0.00019726,2]
[315208869,1708935045536,-492.25353522,0.00019726,2]
[315208870,1708935045545,-501.70449876,0.00019726,2]
[315208871,1708935045554,-500.0,0.00019726,2]
[315208872,1708935045563,-500.0,0.00019726,2]
[315208873,1708935045572,-500.0,0.00019726,2]
[315208874,1708935045581,-500.0,0.00019726,2]
[315208875,1708935045590,-500.0,0.00019726,2]
[315208876,1708935045599,-502.11011131,0.00019726,2]
[315208877,1708935045609,-1671.11,0.00019726,2]
[315208878,1708935045618,-738.31,0.00019726,2]
[315208879,1708935045627,-504.21322817,0.00019726,2]
[315208880,1708935045636,-500.0,0.00019726,2]
[315208881,1708935045645,-630.35,0.00019726,2]
[315208882,1708935045654,-500.0,0.00019726,2]
[315208883,1708935045663,-504.63239658,0.00019726,2]
[315208884,1708935045672,-500.0,0.00019726,2]
[315208885,1708935045681,-504.21335184,0.00019726,2]
[315208886,1708935045690,-1669.61,0.00019726,2]
[315208887,1708935045699,-500.0,0.00019726,2]
[315208888,1708935045708,-500.0,0.00019726,2]
[315208889,1708935045716,-583.9,0.00019726,2]
[315208890,1708935045726,-500.0,0.00019726,2]
[315208891,1708935045735,-500.0,0.00019726,2]
[315208892,1708935045745,-500.0,0.00019726,2]
[315208893,1708935045754,-503.86862046,0.00019726,2]
[315208894,1708935045763,-500.0,0.00019726,2]
[315208895,1708935045773,-500.0,0.00019726,2]
[315208896,1708935045782,-500.0,0.00019726,2]
[315208897,1708935045792,-500.0,0.00019726,2]
[315208898,1708935045801,-501.23396073,0.00019726,2]
[315208899,1708935045811,-500.0,0.00019726,2]
[315208900,1708935045820,-500.0,0.00019726,2]
[315208901,1708935045829,-500.0,0.00019726,2]
[315208902,1708935045838,-500.0,0.00019726,2]
[315208903,1708935045847,-2184.79,0.00019726,2]
[315208904,1708935045856,-503.09460402,0.00019726,2]
[315208905,1708935045865,-500.0,0.00019726,2]
[315208906,1708935045875,-436.57904397,0.00019726,2]
[315208907,1708935045884,-500.0,0.00019726,2]
[315208908,1708935045893,-500.0,0.00019726,2]
[315208909,1708935045903,-500.0,0.00019726,2]
[315208910,1708935045912,-209.81817441,0.00019726,2]
[315208911,1708935045925,-500.0,0.00019726,2]
[315208912,1708935045934,-278.92397509,0.00019726,2]
[315208913,1708935045943,-1773.94,0.00019726,2]
[315208914,1708935045952,-500.0,0.00019726,2]
[315208915,1708935045962,-500.0,0.00019726,2]
[315208916,1708935045972,-501.29954357,0.00019726,2]
[315208917,1708935045981,-500.0,0.00019726,2]
[315208918,1708935045990,-500.0,0.00019726,2]
[315208919,1708935045999,-500.0,0.00019726,2]
[315208920,1708935046009,-500.0,0.00019726,2]
[315208921,1708935046018,-505.95058571,0.00019726,2]
[315208923,1708935046027,-588.21769024,0.00019726,2]
[315208924,1708935046036,-151.0,0.00019726,2]
[315208925,1708935046045,-646.85521638,0.00019726,2]
[315208926,1708935046055,-500.0,0.00019726,2]
[315208927,1708935046064,-378.09595608,0.00019726,2]
[315208928,1708935046073,-500.0,0.00019726,2]
[315208929,1708935046082,-500.0,0.00019726,2]
[315208930,1708935046092,-501.72333826,0.00019726,2]
[315208931,1708935046101,-239.92493776,0.00019726,2]
[315208932,1708935046111,-501.70061197,0.00019726,2]
[315208933,1708935046120,-500.0,0.00019726,2]
[315208934,1708935046130,-553.1,0.00019726,2]
[315208937,1708935046139,-1055.24,0.00019726,2]
[315208938,1708935046243,-500.0,0.00019726,2]
[315208939,1708935046252,-500.0,0.00019726,2]
[315208940,1708935046262,-1283.38,0.00019726,2]
[315208941,1708935046271,-500.0,0.00019726,2]
[315208942,1708935046281,-500.0,0.00019726,2]
[315208943,1708935046291,-500.0,0.00019726,2]
[315208944,1708935046299,-906.806315,0.00019726,2]
[315208945,1708935046309,-906.806315,0.00019726,2]
[315208946,1708935046318,-779.44,0.00019726,2]
[315208947,1708935046327,-1488.87,0.00019726,2]
[315208948,1708935046336,-4218.31,0.00019726,2]
[315208949,1708935046346,-500.0,0.00019726,2]
[315208950,1708935046355,-500.0,0.00019726,2]
[315208951,1708935046364,-500.0,0.00019726,2]
[315208952,1708935046374,-502.09355324,0.00019726,2]
[315208953,1708935046383,-503.09950777,0.00019726,2]
[315208954,1708935046393,-500.0,0.00019726,2]
[315208955,1708935046401,-2941.06,0.00019726,2]
[315208956,1708935046411,-500.0,0.00019726,2]
[315208957,1708935046420,-500.0,0.00019726,2]
[315208958,1708935046429,-2762.77,0.00019726,2]
[315208960,1708935046438,-1467.94,0.00019726,2]
[315208961,1708935046447,-833.88,0.00019726,2]
[315208963,1708935046456,-820.96,0.00019726,2]
[315208964,1708935046465,-500.0,0.00019726,2]
[315208965,1708935046474,-244.30017244,0.00019726,2]
[315208966,1708935046483,-601.56155229,0.00019726,2]
[315208967,1708935046493,-500.0,0.00019726,2]
[315208968,1708935046502,-1000.0,0.00019726,2]
[315208969,1708935046511,-2123.47,0.00019726,2]
[315208970,1708935046520,-1870.84,0.00019726,2]
[315208971,1708935046530,-500.0,0.00019726,2]
[315208972,1708935046538,-500.0,0.00019726,2]
[315208973,1708935046548,-502.22509866,0.00019726,2]
[315208974,1708935046557,-2590.4,0.00019726,2]
[315208975,1708935046566,-500.0,0.00019726,2]
[315208976,1708935046575,-500.0,0.00019726,2]
[315208977,1708935046585,-500.0,0.00019726,2]
[315208978,1708935046594,-500.0,0.00019726,2]
[315208979,1708935046604,-2088.94,0.00019726,2]
[315208980,1708935046613,-23193.98,0.00019726,2]
[315208981,1708935046622,-500.81546176,0.00019726,2]
[315208982,1708935046632,-11204.38,0.00019726,2]
[315208983,1708935046642,-500.0,0.00019726,2]
[315208984,1708935046651,-500.0,0.00019726,2]
[315208985,1708935046660,-500.0,0.00019726,2]
[315208986,1708935046670,-500.0,0.00019726,2]